fUST/lending_fUST_20250709
["ID","MTS","AMOUNT","RATE_DAILY","PERIOD"]
[370536484,1752060642223,-1325.27,0.00019726,2]
[370536485,1752060642234,-460.0,0.00019726,2]
[370536486,1752060642244,-487.35,0.00019726,2]
[370536487,1752060642254,-460.0,0.00019726,2]
[370536488,1752060642264,-460.0,0.00019726,2]
[370536489,1752060642273,-1379.98,0.00019726,2]
[370536490,1752060642284,-460.0,0.00019726,2]
[370536491,1752060642293,-1101.47,0.00019726,2]
[370536492,1752060642303,-460.0,0.00019726,2]
[370536493,1752060642313,-460.0,0.00019726,2]
[370536494,1752060642323,-460.0,0.00019726,2]
[370536495,1752060642333,-189.67,0.00019726,2]
[370536496,1752060642342,-903.37,0.00019726,2]
[370536497,1752060642351,-460.0,0.00019726,2]
[370536498,1752060642361,-460.0,0.00019726,2]
[370536499,1752060642370,-460.0,0.00019726,2]
[370536500,1752060642380,-460.0,0.00019726,2]
[370536501,1752060642389,-460.0,0.00019726,2]
[370536502,1752060642400,-460.0,0.00019726,2]
[370536503,1752060642410,-720.08,0.00019726,2]
[370536504,1752060642419,-1587.31,0.00019726,2]
[370536505,1752060642428,-460.0,0.00019726,2]
[370536506,1752060642437,-460.0,0.00019726,2]
[370536507,1752060642447,-2100.97,0.00019726,2]
[370536508,1752060642456,-1906.32,0.00019726,2]
[370536509,1752060642466,-460.0,0.00019726,2]
[370536510,1752060642475,-460.0,0.00019726,2]
[370536511,1752060642484,-460.0,0.00019726,2]
[370536512,1752060642494,-198.9,0.00019726,2]
[370536513,1752060642503,-672.93,0.00019726,2]
[370536514,1752060642513,-460.0,0.00019726,2]
[370536515,1752060642522,-1120.19,0.00019726,2]
[370536516,1752060642532,-460.0,0.00019726,2]
[370536517,1752060642541,-460.0,0.00019726,2]
[370536518,1752060642551,-460.0,0.00019726,2]
[370536519,1752060642560,-1628.43,0.00019726,2]
[370536520,1752060642569,-460.0,0.00019726,2]
[370536521,1752060642579,-460.0,0.00019726,2]
[370536522,1752060642588,-675.36,0.00019726,2]
[370536523,1752060642598,-599.92,0.00019726,2]
[370536524,1752060642609,-460.0,0.00019726,2]
[370536525,1752060642618,-460.0,0.00019726,2]
[370536526,1752060642627,-460.0,0.00019726,2]
[370536527,1752060642636,-460.0,0.00019726,2]
[370536528,1752060642645,-460.0,0.00019726,2]
[370536529,1752060642655,-460.0,0.00019726,2]
[370536530,1752060642664,-354.88,0.00019726,2]
[370536531,1752060642673,-460.0,0.00019726,2]
[370536532,1752060642683,-3687.81,0.00019726,2]
[370536533,1752060642692,-470.01,0.00019726,2]
[370536534,1752060642702,-460.0,0.00019726,2]
[370536535,1752060642711,-464.44,0.00019726,2]
[370536536,1752060642720,-460.0,0.00019726,2]
[370536537,1752060642730,-500.0,0.00019759,2]
[370536538,1752060642739,-500.0,0.00019759,2]
[370536539,1752060642748,-500.0,0.00019808,2]
[370536540,1752060642758,-151.0,0.00019808,2]
[370536541,1752060642769,-500.0,0.00019835,2]
[370536542,1752060642779,-151.0,0.00019835,2]
[370536543,1752060642788,-500.0,0.00019863,2]
[370536544,1752060642798,-486.31273809,0.00019882,2]
[370536545,1752060642809,-500.0,0.00019882,2]
[370536546,1752060642818,-500.0,0.00019882,2]
[370536547,1752060642827,-500.0,0.00019882,2]
[370536548,1752060642837,-500.0,0.00019882,2]
[370536549,1752060642847,-356.60810597,0.0001989,2]
[370536550,1752060642856,-1934.8,0.00019899,2]
[370536551,1752060642866,-1206.61008396,0.000199,2]
[370536552,1752060642876,-495.41040403,0.00019906,2]
[370536553,1752060642886,-500.0,0.00019906,2]
[370536554,1752060642895,-500.0,0.00019906,2]
[370536555,1752060642905,-500.0,0.00019906,2]
[370536556,1752060642914,-500.0,0.00019906,2]
[370536557,1752060642924,-500.0,0.00019906,2]
[370536558,1752060642933,-500.0,0.00019906,2]
[370536559,1752060642942,-500.0,0.00019906,2]
[370536560,1752060642953,-500.0,0.00019906,2]
[370536561,1752060642962,-500.0,0.00019906,2]
[370536562,1752060642972,-500.0,0.00019906,2]
[370536563,1752060642982,-500.0,0.00019906,2]
[370536564,1752060642991,-496.78735812,0.00019915,2]
[370536565,1752060643001,-369.426301,0.00019994,2]
[370536566,1752060643011,-1934.8,0.00019998,2]
[370536568,1752060643021,-1934.8,0.00019999,2]
[370536569,1752060643031,-1934.8,0.00019999,2]
[370536570,1752060643040,-1934.8,0.00019999,2]
[370536571,1752060643049,-1934.8,0.00019999,2]
[370536572,1752060643059,-1934.8,0.00019999,2]
[370536573,1752060643068,-1934.96080889,0.00019999,2]
[370536574,1752060643077,-151.0,0.0002,2]
[370536575,1752060643087,-460.0,0.0002,2]
[370536576,1752060643096,-151.0,0.0002,2]
[370536577,1752060643105,-151.0,0.0002,2]
[370536578,1752060643116,-151.0,0.0002,2]
[370536579,1752060643127,-460.0,0.0002,2]
[370536580,1752060643138,-151.0,0.0002,2]
[370536581,1752060643148,-151.0,0.0002,2]
[370536582,1752060643158,-460.0,0.0002,2]
[370536583,1752060643167,-506.25,0.0002,2]
[370536585,1752060643177,-460.0,0.0002,2]
[370536587,1752060643186,-460.0,0.0002,2]
[370536589,1752060643195,-460.0,0.0002,2]
[370536590,1752060643205,-460.0,0.0002,2]
[370536591,1752060643215,-460.0,0.0002,2]
[370536592,1752060643226,-460.0,0.0002,2]
[370536593,1752060643238,-460.0,0.0002,2]
[370536594,1752060643248,-460.0,0.0002,2]
[370536595,1752060643258,-460.0,0.0002,2]
[370536596,1752060643268,-460.0,0.0002,2]
[370536598,1752060643279,-460.0,0.0002,2]
[370536600,1752060643288,-460.0,0.0002,2]
[370536601,1752060643297,-337.17494603,0.0002,2]
[370536603,1752060643308,-460.0,0.0002,2]
[370536604,1752060643318,-236.66,0.0002,2]
[370536605,1752060643328,-460.0,0.0002,2]
[370536606,1752060643337,-460.0,0.0002,2]
[370536607,1752060643347,-460.0,0.0002,2]
[370536608,1752060643356,-460.0,0.0002,2]
[370536609,1752060643366,-460.0,0.0002,2]
[370536610,1752060643375,-460.0,0.0002,2]
[370536611,1752060643385,-460.0,0.0002,2]
[370536612,1752060643396,-460.0,0.0002,2]
[370536613,1752060643406,-460.0,0.0002,2]
[370536614,1752060643415,-460.0,0.0002,2]
[370536615,1752060643424,-460.0,0.0002,2]
[370536617,1752060643433,-1378.33,0.0002,2]
[370536619,1752060643443,-460.0,0.0002,2]
[370536620,1752060643455,-460.0,0.0002,2]
[370536621,1752060643470,-460.0,0.0002,2]
[370536622,1752060643489,-484.74,0.0002,2]
[370536623,1752060643500,-2947.9,0.0002,2]
[370536624,1752060643512,-460.0,0.0002,2]
[370536625,1752060643521,-460.0,0.0002,2]
[370536626,1752060643531,-460.0,0.0002,2]
[370536627,1752060643541,-1325.27,0.0002,2]
[370536628,1752060643550,-460.0,0.0002,2]
[370536629,1752060643559,-487.35,0.0002,2]
[370536630,1752060643569,-572.58,0.0002,2]
[370536631,1752060643579,-460.0,0.0002,2]
[370536632,1752060643588,-1379.98,0.0002,2]
[370536633,1752060643599,-460.0,0.0002,2]
[370536634,1752060643609,-1101.47,0.0002,2]
[370536635,1752060643619,-460.0,0.0002,2]
[370536636,1752060643629,-460.0,0.0002,2]
[370536637,1752060643638,-460.0,0.0002,2]
[370536638,1752060643648,-903.37,0.0002,2]
[370536639,1752060643658,-460.0,0.0002,2]
[370536641,1752060643668,-460.0,0.0002,2]
[370536642,1752060643677,-460.0,0.0002,2]
[370536643,1752060643686,-460.0,0.0002,2]
[370536644,1752060643695,-460.0,0.0002,2]
[370536645,1752060643705,-720.08,0.0002,2]
[370536646,1752060643714,-1587.31,0.0002,2]
[370536647,1752060643723,-460.0,0.0002,2]
[370536648,1752060643733,-460.0,0.0002,2]
[370536649,1752060643742,-1906.32,0.0002,2]
[370536650,1752060643751,-2100.97,0.0002,2]
[370536651,1752060643761,-460.0,0.0002,2]
[370536652,1752060643770,-460.0,0.0002,2]
[370536653,1752060643780,-672.93,0.0002,2]
[370536654,1752060643788,-460.0,0.0002,2]
[370536655,1752060643799,-1120.19,0.0002,2]
[370536656,1752060643808,-460.0,0.0002,2]
[370536657,1752060643817,-460.0,0.0002,2]
[370536658,1752060643827,-460.0,0.0002,2]
[370536659,1752060643836,-1628.43,0.0002,2]
[370536660,1752060643846,-460.0,0.0002,2]
[370536661,1752060643855,-460.0,0.0002,2]
[370536662,1752060643865,-675.36,0.0002,2]
[370536663,1752060643874,-599.92,0.0002,2]
[370536664,1752060643884,-460.0,0.0002,2]
[370536665,1752060643894,-460.0,0.0002,2]
[370536666,1752060643903,-450.34781317,0.0002,2]
[370536667,1752060643912,-460.0,0.0002,2]
[370536668,1752060643922,-460.0,0.0002,2]
[370536669,1752060643931,-460.0,0.0002,2]
[370536670,1752060643940,-460.0,0.0002,2]
[370536671,1752060643950,-3687.81,0.0002,2]
[370536672,1752060643959,-470.01,0.0002,2]
[370536673,1752060643971,-464.44,0.0002,2]
[370536674,1752060643981,-460.0,0.0002,2]
[370536675,1752060643995,-346.0,0.0002007,2]
[370536676,1752060644006,-369.426301,0.0002009,2]
[370536677,1752060644016,-1206.61008384,0.00020107,2]
[370536678,1752060644026,-369.426301,0.00020186,2]
[370536679,1752060644035,-1138.45030214,0.00020186,2]
[370536680,1752060644045,-199.191471,0.00020187,2]
[370536681,1752060644054,-2505.61277877,0.0002025,2]
[370536682,1752060644064,-151.0,0.00020273,2]
[370536683,1752060644076,-151.0,0.00020273,2]
[370536684,1752060644086,-460.0,0.00020273,2]
[370536685,1752060644096,-585.936826,0.00020273,2]
[370536686,1752060644106,-585.936826,0.00020273,2]
[370536687,1752060644116,-460.0,0.00020273,2]
[370536688,1752060644126,-460.0,0.00020273,2]
[370536689,1752060644135,-294.00819675,0.00020273,2]
[370536690,1752060644144,-460.0,0.00020273,2]
[370536691,1752060644153,-460.0,0.00020273,2]
[370536692,1752060644163,-460.0,0.00020273,2]
[370536693,1752060644173,-460.0,0.00020273,2]
[370536694,1752060644183,-460.0,0.00020273,2]
[370536695,1752060644192,-460.0,0.00020273,2]
[370536696,1752060644202,-460.0,0.00020273,2]
[370536697,1752060644211,-460.0,0.00020273,2]
[370536698,1752060644220,-460.0,0.00020273,2]
[370536699,1752060644230,-460.0,0.00020273,2]
[370536700,1752060644243,-460.0,0.00020273,2]
[370536701,1752060644253,-254.17,0.00020273,2]
[370536702,1752060644262,-464.95466168,0.00020273,2]
[370536703,1752060644271,-460.0,0.00020273,2]
[370536704,1752060644282,-460.0,0.00020273,2]
[370536705,1752060644291,-460.0,0.00020273,2]
[370536706,1752060644301,-460.0,0.00020273,2]
[370536707,1752060644311,-460.0,0.00020273,2]
[370536708,1752060644321,-460.0,0.00020273,2]
[370536709,1752060644330,-1378.33,0.00020273,2]
[370536710,1752060644340,-460.0,0.00020273,2]
[370536711,1752060644350,-460.0,0.00020273,2]
[370536712,1752060644359,-460.0,0.00020273,2]
[370536713,1752060644368,-484.74,0.00020273,2]
[370536714,1752060644377,-2947.9,0.00020273,2]
[370536715,1752060644387,-460.0,0.00020273,2]
[370536716,1752060644396,-460.0,0.00020273,2]
[370536717,1752060644406,-460.0,0.00020273,2]
[370536718,1752060644415,-1325.27,0.00020273,2]
[370536719,1752060644425,-460.0,0.00020273,2]
[370536720,1752060644435,-487.35,0.00020273,2]
[370536721,1752060644444,-460.0,0.00020273,2]
[370536722,1752060644454,-1379.98,0.00020273,2]
[370536723,1752060644464,-460.0,0.00020273,2]
[370536724,1752060644473,-1101.47,0.00020273,2]
[370536725,1752060644484,-460.0,0.00020273,2]
[370536726,1752060644494,-359.08,0.00020273,2]
[370536727,1752060644504,-460.0,0.00020273,2]
[370536728,1752060644514,-903.37,0.00020273,2]
[370536729,1752060644525,-460.0,0.00020273,2]
[370536730,1752060644534,-152.37,0.00020273,2]
[370536731,1752060644544,-460.0,0.00020273,2]
[370536732,1752060644553,-460.0,0.00020273,2]
[370536733,1752060644562,-527.08,0.00020273,2]
[370536734,1752060644572,-720.08,0.00020273,2]
[370536735,1752060644581,-1587.31,0.00020273,2]
[370536736,1752060644591,-567.38996137,0.00020273,2]
[370536737,1752060644600,-154.295007,0.00020273,2]
[370536738,1752060644610,-460.0,0.00020273,2]
[370536739,1752060644620,-1906.32,0.00020273,2]
[370536740,1752060644630,-2100.97,0.00020273,2]
[370536741,1752060644640,-460.0,0.00020273,2]
[370536742,1752060644649,-460.0,0.00020273,2]
[370536743,1752060644659,-672.93,0.00020273,2]
[370536744,1752060644669,-1120.19,0.00020273,2]
[370536745,1752060644678,-460.0,0.00020273,2]
[370536746,1752060644687,-460.0,0.00020273,2]
[370536747,1752060644696,-460.0,0.00020273,2]
[370536748,1752060644705,-460.0,0.00020273,2]
[370536749,1752060644714,-1628.43,0.00020273,2]
[370536750,1752060644833,-188.40409149,0.00020273,2]
[370536751,1752060644843,-460.0,0.00020273,2]
[370536752,1752060644853,-675.36,0.00020273,2]
[370536753,1752060644862,-599.92,0.00020273,2]
[370536754,1752060644873,-460.0,0.00020273,2]
[370536755,1752060644882,-460.0,0.00020273,2]
[370536756,1752060644892,-460.0,0.00020273,2]
[370536757,1752060644902,-366.07348322,0.00020273,2]
[370536758,1752060644911,-3687.81,0.00020273,2]
[370536759,1752060644921,-470.01,0.00020273,2]
[370536760,1752060644930,-464.44,0.00020273,2]
[370536761,1752060644940,-514.62,0.00020273,2]
[370536762,1752060644949,-369.426301,0.00020281,2]
[370536763,1752060644962,-1000.0,0.00020307,2]
[370536764,1752060644973,-1206.61008384,0.00020314,3]
[370536765,1752060644985,-369.426301,0.00020377,2]
[370536766,1752060644995,-506.55112485,0.0002043,2]
[370536767,1752060645005,-1000.0,0.0002043,2]
[370536768,1752060645014,-1000.0,0.0002043,2]
[370536769,1752060645024,-975.70977243,0.0002043,2]
[370536770,1752060645033,-300.0,0.00020451,2]
[370536771,1752060645042,-300.0,0.00020451,2]
[370536772,1752060645051,-690.642,0.00020451,2]
[370536773,1752060645060,-300.0,0.00020451,2]
[370536774,1752060645069,-300.0,0.00020451,2]
[370536775,1752060645079,-300.0,0.00020451,2]
[370536776,1752060645089,-500.0,0.00020451,2]
[370536777,1752060645098,-300.0,0.00020451,2]
[370536778,1752060645107,-300.0,0.00020451,2]
[370536779,1752060645116,-500.0,0.00020451,2]
[370536780,1752060645126,-300.0,0.00020451,2]
[370536781,1752060645136,-300.0,0.00020451,2]
[370536782,1752060645145,-300.0,0.00020451,2]
[370536783,1752060645155,-500.0,0.00020451,2]
[370536784,1752060645166,-300.0,0.00020451,2]
[370536785,1752060645176,-300.0,0.00020451,2]
[370536786,1752060645185,-3000.0,0.00020451,2]
[370536787,1752060645196,-300.0,0.00020451,2]
[370536788,1752060645206,-500.0,0.00020451,2]
[370536789,1752060645217,-300.0,0.00020451,2]
[370536790,1752060645229,-300.0,0.00020451,2]
[370536791,1752060645243,-3000.0,0.00020451,2]
[370536792,1752060645254,-300.0,0.00020451,2]
[370536793,1752060645264,-500.0,0.00020451,2]
[370536794,1752060645275,-300.0,0.00020451,2]
[370536795,1752060645286,-300.0,0.00020451,2]
[370536796,1752060645296,-3000.0,0.00020451,2]
[370536797,1752060645307,-500.0,0.00020451,2]
[370536798,1752060645318,-300.0,0.00020451,2]
[370536799,1752060645329,-300.0,0.00020451,2]
[370536800,1752060645340,-3000.0,0.00020451,2]
[370536801,1752060645351,-500.0,0.00020451,2]
[370536802,1752060645361,-300.0,0.00020451,2]
[370536803,1752060645371,-25000.0,0.00020451,2]
[370536804,1752060645380,-300.0,0.00020451,2]
[370536805,1752060645393,-3000.0,0.00020451,2]
[370536806,1752060645407,-300.0,0.00020451,2]
[370536807,1752060645417,-320.64489862,0.00020451,2]
[370536808,1752060645426,-500.0,0.00020451,2]
[370536809,1752060645436,-5271.91774509,0.00020451,2]
[370536810,1752060645445,-3000.0,0.00020451,2]
[370536811,1752060645454,-300.0,0.00020451,2]
[370536812,1752060645464,-500.0,0.00020451,2]
[370536813,1752060645474,-3000.0,0.00020451,2]
[370536814,1752060645484,-300.0,0.00020451,2]
[370536815,1752060645494,-3000.0,0.00020451,2]
[370536816,1752060645504,-500.0,0.00020451,2]
[370536817,1752060645514,-300.0,0.00020451,2]
[370536818,1752060645525,-3000.0,0.00020451,2]
[370536819,1752060645535,-500.0,0.00020451,2]
[370536820,1752060645545,-3000.0,0.00020451,2]
[370536821,1752060645555,-500.0,0.00020451,2]
[370536822,1752060645564,-500.0,0.00020451,2]
[370536823,1752060645573,-300.0,0.00020451,2]
[370536824,1752060645583,-207.4,0.00020451,2]
[370536825,1752060645592,-500.0,0.00020451,2]
[370536826,1752060645601,-300.0,0.00020451,2]
[370536827,1752060645610,-300.0,0.00020451,2]
[370536828,1752060645620,-3000.0,0.00020451,2]
[370536829,1752060645629,-3000.0,0.00020451,2]
[370536830,1752060645642,-3000.0,0.00020451,2]
[370536831,1752060645651,-3000.0,0.00020451,2]
[370536832,1752060645661,-195.35678219,0.00020451,2]
[370536833,1752060645670,-151.0,0.00020451,2]
[370536834,1752060645680,-151.0,0.00020451,2]
[370536835,1752060645689,-151.0,0.00020451,2]
[370536836,1752060645698,-151.0,0.00020451,2]
[370536837,1752060645707,-151.0,0.00020451,2]
[370536838,1752060645717,-151.0,0.00020451,2]
[370536839,1752060645726,-151.599264,0.00020451,2]
[370536840,1752060645735,-151.299347,0.00020451,2]
[370536841,1752060645744,-151.146034,0.00020451,2]
[370536842,1752060645754,-151.0,0.00020451,2]
[370536843,1752060645763,-151.0,0.00020451,2]
[370536844,1752060645772,-281.991641,0.00020451,2]
[370536845,1752060645782,-151.0,0.00020451,2]
[370536846,1752060645792,-151.0,0.00020451,2]
[370536848,1752060645801,-151.0,0.00020451,2]
[370536849,1752060645810,-279.852506,0.00020451,2]
[370536850,1752060645819,-151.0,0.00020451,2]
[370536851,1752060645828,-151.0,0.00020451,2]
[370536852,1752060645838,-151.0,0.00020451,2]
[370536853,1752060645847,-151.0,0.00020451,2]
[370536855,1752060645857,-151.0,0.00020451,2]
[370536856,1752060645867,-151.0,0.00020451,2]
[370536857,1752060645877,-151.0,0.00020451,2]
[370536858,1752060645893,-152.426959,0.00020451,2]
[370536859,1752060645903,-1000.0,0.00020454,2]
[370536860,1752060645914,-1000.0,0.00020454,2]
[370536861,1752060645925,-1000.0,0.00020454,2]
[370536862,1752060645936,-511.99044002,0.00020454,2]
[370536863,1752060645948,-1000.0,0.00020454,2]
[370536864,1752060645960,-500.0,0.00020454,2]
[370536865,1752060645971,-1036.94146932,0.00020454,2]
[370536866,1752060645982,-1000.0,0.00020454,2]
[370536867,1752060645993,-500.0,0.00020454,2]
[370536868,1752060646003,-1000.0,0.00020454,2]
[370536869,1752060646015,-230.53906051,0.00020459,2]
[370536870,1752060646026,-215.27775528,0.00020459,2]
[370536871,1752060646036,-837.99933892,0.00020459,2]
[370536873,1752060646046,-214.14293035,0.00020459,2]
[370536874,1752060646058,-160.0,0.00020459,2]
[370536876,1752060646070,-12589.12013084,0.00020459,2]
[370536877,1752060646081,-160.0,0.00020459,2]
[370536878,1752060646091,-160.0,0.00020459,2]
[370536879,1752060646100,-160.0,0.00020459,2]
[370536880,1752060646110,-160.0,0.00020459,2]
[370536881,1752060646120,-160.0,0.00020459,2]
[370536882,1752060646130,-848.55005627,0.00020459,2]
[370536883,1752060646145,-369.426301,0.00020473,2]
[370536884,1752060646155,-262.67526709,0.00020491,2]
[370536885,1752060646165,-151.0,0.000205,4]
[370536886,1752060646175,-716.195754,0.00020506,2]
[370536887,1752060646184,-585.936826,0.00020506,2]
[370536888,1752060646193,-585.936826,0.00020506,2]
[370536889,1752060646203,-159.547108,0.00020521,2]
[370536890,1752060646212,-177.8250511,0.00020521,2]
[370536891,1752060646224,-306.0,0.00020521,2]
[370536892,1752060646238,-177.763542,0.00020521,2]
[370536893,1752060646251,-159.547108,0.00020521,2]
[370536894,1752060646264,-576.0368563,0.00020521,2]
[370536895,1752060646276,-159.547108,0.00020521,2]
[370536896,1752060646286,-159.4922776,0.00020521,2]
[370536897,1752060646298,-1206.61008384,0.00020521,3]
[370536898,1752060646312,-1815.64,0.00020538,3]
[370536899,1752060646325,-907.82,0.00020538,3]
[370536900,1752060646337,-460.0,0.00020547,2]
[370536901,1752060646349,-460.0,0.00020547,2]
[370536902,1752060646362,-460.0,0.00020547,2]
[370536903,1752060646374,-460.0,0.00020547,2]
[370536904,1752060646388,-460.0,0.00020547,2]
[370536905,1752060646401,-460.0,0.00020547,2]
[370536906,1752060646414,-460.0,0.00020547,2]
[370536907,1752060646426,-460.0,0.00020547,2]
[370536908,1752060646438,-151.0,0.00020547,2]
[370536909,1752060646451,-460.0,0.00020547,2]
[370536910,1752060646462,-151.0,0.00020547,2]
[370536911,1752060646474,-460.0,0.00020547,2]
[370536912,1752060646487,-460.0,0.00020547,2]
[370536913,1752060646499,-460.0,0.00020547,2]
[370536914,1752060646512,-460.0,0.00020547,2]
[370536915,1752060646522,-460.0,0.00020547,2]
[370536916,1752060646533,-460.0,0.00020547,2]
[370536917,1752060646544,-460.0,0.00020547,2]
[370536918,1752060646556,-460.0,0.00020547,2]
[370536920,1752060646568,-1378.33,0.00020547,2]
[370536922,1752060646580,-151.0,0.00020547,2]
[370536924,1752060646592,-460.0,0.00020547,2]
[370536925,1752060646604,-151.46997,0.00020547,2]
[370536926,1752060646617,-460.0,0.00020547,2]
[370536927,1752060646630,-460.0,0.00020547,2]
[370536928,1752060646645,-484.74,0.00020547,2]
[370536929,1752060646658,-2947.9,0.00020547,2]
[370536930,1752060646670,-460.0,0.00020547,2]
[370536931,1752060646680,-460.0,0.00020547,2]
[370536932,1752060646691,-460.0,0.00020547,2]
[370536933,1752060646701,-1325.27,0.00020547,2]
[370536936,1752060646712,-460.0,0.00020547,2]
[370536937,1752060646724,-487.35,0.00020547,2]
[370536938,1752060646738,-460.0,0.00020547,2]
[370536940,1752060646751,-1379.98,0.00020547,2]
[370536941,1752060646762,-460.0,0.00020547,2]
[370536942,1752060646773,-1101.47,0.00020547,2]
[370536943,1752060646784,-460.0,0.00020547,2]
[370536944,1752060646795,-460.0,0.00020547,2]
[370536945,1752060646807,-903.37,0.00020547,2]
[370536946,1752060646819,-151.0,0.00020547,2]
[370536947,1752060646829,-460.0,0.00020547,2]
[370536948,1752060646840,-460.0,0.00020547,2]
[370536949,1752060646850,-460.0,0.00020547,2]
[370536950,1752060646861,-720.08,0.00020547,2]
[370536951,1752060646873,-151.0,0.00020547,2]
[370536952,1752060646885,-1587.31,0.00020547,2]
[370536953,1752060646896,-151.0,0.00020547,2]
[370536954,1752060646907,-460.0,0.00020547,2]
[370536955,1752060646918,-1906.32,0.00020547,2]
[370536956,1752060646931,-2100.97,0.00020547,2]
[370536957,1752060646942,-460.0,0.00020547,2]
[370536958,1752060646953,-348.2,0.00020547,2]
[370536959,1752060646964,-672.93,0.00020547,2]
[370536960,1752060646976,-1120.19,0.00020547,2]
[370536961,1752060646986,-460.0,0.00020547,2]
[370536962,1752060646997,-460.0,0.00020547,2]
[370536963,1752060647009,-460.0,0.00020547,2]
[370536964,1752060647019,-460.0,0.00020547,2]
[370536965,1752060647031,-1628.43,0.00020547,2]
[370536966,1752060647042,-460.0,0.00020547,2]
[370536967,1752060647053,-675.36,0.00020547,2]
[370536968,1752060647064,-599.92,0.00020547,2]
[370536969,1752060647075,-460.0,0.00020547,2]
[370536970,1752060647087,-460.0,0.00020547,2]
[370536971,1752060647098,-460.0,0.00020547,2]
[370536972,1752060647109,-3687.81,0.00020547,2]
[370536973,1752060647120,-470.01,0.00020547,2]
[370536974,1752060647131,-464.44,0.00020547,2]
[370536975,1752060647144,-742.6949969,0.00020561,2]
[370536976,1752060647155,-369.426301,0.00020568,2]
[370536977,1752060647166,-2156.45,0.000206,2]
[370536978,1752060647177,-151.0,0.000206,2]
[370536979,1752060647188,-151.0,0.000206,2]
[370536980,1752060647200,-770.17471178,0.00020616,2]
[370536981,1752060647211,-369.426301,0.00020664,2]
[370536982,1752060647222,-798.67117612,0.00020671,2]
[370536983,1752060647236,-22946.66876487,0.0002071,2]
[370536984,1752060647247,-309.74380952,0.00020726,2]
[370536985,1752060647258,-1206.61008384,0.00020728,3]
[370536986,1752060647270,-1138.45030214,0.00020758,2]
[370536987,1752060647280,-369.426301,0.0002076,2]
[370536988,1752060647291,-420.0,0.00020789,2]
[370536989,1752060647302,-151.0,0.000208,3]
[370536990,1752060647313,-453.9,0.00020812,3]
[370536991,1752060647324,-151.0,0.00020821,2]
[370536992,1752060647336,-151.0,0.00020821,2]
[370536993,1752060647347,-151.0,0.00020821,2]
[370536994,1752060647357,-230.041022,0.00020821,2]
[370536995,1752060647368,-585.936826,0.00020821,2]
[370536996,1752060647379,-585.936826,0.00020821,2]
[370536997,1752060647392,-460.0,0.00020821,2]
[370536998,1752060647403,-151.0,0.00020821,2]
[370536999,1752060647414,-151.0,0.00020821,2]
[370537000,1752060647425,-228.63796661,0.00020821,2]
[370537001,1752060647437,-460.0,0.00020821,2]
[370537002,1752060647448,-151.0,0.00020821,2]
[370537003,1752060647459,-151.0,0.00020821,2]